bitfinex-derivatives/quotes_ETHF0:USTF0_20250816
["timestamp","ask_amount","ask_price","bid_price","bid_amount"]
[1755327272416,1.1770715,4418.1,4418.0,1.3177]
[1755327274019,0.1373715,4418.1,4418.0,1.3177]
[1755327274522,0.6133,4418.0,4417.7,0.2573]
[1755327274824,1.4562,4417.9,4417.8,0.7938]
[1755327275022,1.4562,4417.9,4417.8,1.0531]
[1755327275224,1.4562,4417.9,4417.8,1.3177]
[1755327276713,0.246,4418.1,4418.0,0.7112]
[1755327277023,0.13726359,4418.1,4418.0,2.77898829]
[1755327277218,0.1,4418.2,4418.0,5.27028829]
[1755327277422,0.246,4419.7,4418.1,3.7165]
[1755327277618,0.13725878,4419.6,4419.4,1.3177]
[1755327277922,0.246,4419.6,4419.5,2.77898829]
[1755327278124,0.246,4419.9,4419.5,2.06248829]
[1755327278422,3.4538,4420.1,4420.0,1.3177]
[1755327278723,0.5874,4419.8,4419.7,0.7938]
[1755327278918,1.4562,4419.8,4419.7,1.0531]
[1755327279419,1.2007,4419.8,4419.1,0.1946]
[1755327279617,1.1995,4419.7,4419.6,0.3419]
[1755327279919,1.1995,4419.7,4419.0,3.2078]
[1755327279920,0.5874,4419.7,4419.2,0.4519]
[1755327280116,1.4562,4419.3,4419.2,0.4251]
[1755327280318,1.4562,4419.3,4419.2,0.7938]
[1755327281115,4.66908829,4420.2,4419.3,0.7165]
[1755327281116,0.8688,4420.1,4419.3,0.7165]
[1755327281319,0.5874,4419.7,4419.6,3.809]
[1755327281521,1.4562,4419.7,4419.6,4.5255]
[1755327281716,1.46128829,4420.3,4419.6,1.0531]
[1755327281915,1.0889,4419.7,4419.6,1.0531]
[1755327282119,1.4562,4419.7,4419.6,0.7938]
[1755327282518,1.4562,4419.7,4419.6,0.1741]
[1755327282923,1.4562,4419.7,4419.6,0.5992]
[1755327283515,1.4562,4419.7,4419.6,1.0531]
[1755327283919,1.4562,4419.7,4419.6,0.5992]
[1755327285218,1.4562,4419.7,4419.6,0.7938]
[1755327285522,0.6724,4419.7,4419.6,1.3177]
[1755327285923,0.6724,4419.7,4419.6,2.77898829]
[1755327286224,1.4562,4419.7,4419.6,0.5992]
[1755327286422,0.2555,4419.6,4419.3,1.91318829]
[1755327286615,0.5874,4419.4,4419.3,2.25708829]
[1755327286820,1.4562,4419.4,4419.3,2.25708829]
[1755327287026,1.4562,4419.4,4419.3,2.52168829]
[1755327287227,1.4562,4419.4,4419.3,2.77898829]
[1755327287621,0.4157,4419.9,4419.8,0.1741]
[1755327287827,1.4562,4419.9,4419.8,1.0531]
[1755327289618,1.4562,4419.9,4419.8,0.7938]
[1755327290722,1.4562,4419.9,4419.8,1.0399]
[1755327291126,1.4562,4419.9,4419.8,1.28]
[1755327291330,1.2007,4419.9,4419.8,1.28]
[1755327292023,1.4423,4419.9,4419.8,1.28]
[1755327292228,1.2007,4419.9,4419.8,1.28]
[1755327292728,1.4423,4419.9,4419.8,1.28]
[1755327294233,1.2007,4419.9,4419.8,1.28]
[1755327294533,1.4423,4419.9,4419.8,1.28]
[1755327294833,1.2007,4419.9,4419.8,1.28]
[1755327295027,1.4423,4419.9,4419.8,1.28]
[1755327295228,1.4423,4419.9,4419.8,1.0399]
[1755327295930,1.4423,4419.9,4419.8,1.28]
[1755327297027,0.2567,4419.9,4419.8,1.28]
[1755327297330,3.2078,4420.7,4419.8,1.0399]
[1755327297528,3.2078,4420.7,4420.6,2.04348829]
[1755327297726,0.834,4421.5,4421.4,0.3343]
[1755327298028,0.2463,4421.4,4421.1,1.70918829]
[1755327298230,0.2463,4421.4,4421.3,1.0235]
[1755327298429,0.361,4421.9,4421.3,1.0235]
[1755327298430,1.4366,4421.7,4421.6,0.5822]
[1755327298624,3.2078,4422.5,4421.4,0.2479]
[1755327298625,0.8489,4421.6,4421.4,0.2479]
[1755327298827,0.2463,4421.7,4421.4,2.72488829]
[1755327299134,0.2463,4421.8,4421.5,0.2479]
[1755327299329,0.4136,4421.8,4421.7,0.5804]
[1755327299632,1.4366,4421.8,4421.7,1.0684]
[1755327300134,0.8293,4421.8,4421.2,3.2078]
[1755327300334,0.5877,4420.8,4420.7,3.79]
[1755327300632,0.6073,4421.2,4420.7,5.24948829]
[1755327300830,1.0209,4421.2,4421.1,0.5804]
[1755327301032,1.46128829,4422.1,4421.2,0.4431]
[1755327301224,0.4136,4421.4,4421.3,2.28958829]
[1755327301527,0.6073,4421.7,4421.6,0.5804]
[1755327301732,1.195,4421.7,4421.6,1.2636]
[1755327301934,1.4366,4421.7,4421.6,1.0235]
[1755327302228,0.4136,4421.7,4421.2,3.403]
[1755327302533,1.4366,4421.3,4421.2,3.2078]
[1755327303629,1.4366,4421.3,4421.2,3.5421]
[1755327303828,1.4366,4421.3,4421.2,3.9852]
[1755327304032,1.4366,4421.3,4421.2,4.2313]
[1755327304527,1.195,4421.3,4421.2,4.4714]
[1755327305126,1.4366,4421.3,4421.2,4.2313]
[1755327305326,1.4366,4421.3,4420.7,3.2078]
[1755327305327,2.04898829,4421.3,4420.7,3.2078]
[1755327305522,0.5877,4420.8,4420.7,3.5421]
[1755327305721,1.4366,4420.8,4420.7,4.4714]
[1755327306032,1.195,4420.8,4420.7,4.4714]
[1755327306229,1.0209,4420.8,4420.7,4.4714]
[1755327307528,0.6599,4420.8,4420.7,4.4714]
[1755327307729,0.2463,4420.8,4420.7,4.4714]
[1755327308129,0.2463,4420.8,4420.7,4.0283]
[1755327308130,0.4136,4420.8,4420.7,4.0283]
[1755327308334,1.0209,4420.8,4420.7,4.4714]
[1755327308735,0.6599,4420.8,4420.7,4.4714]
[1755327310126,1.195,4420.8,4420.7,25.2484]
[1755327310930,1.195,4420.8,4420.7,4.0361]
[1755327311130,1.4366,4420.8,4420.7,4.2313]
[1755327311525,1.4366,4420.8,4420.7,4.4714]
[1755327311935,1.195,4420.8,4420.7,4.4714]
[1755327312628,1.185,4421.6,4421.5,0.3343]
[1755327312833,1.3336842,4421.6,4421.5,1.2636]
[1755327313036,1.195,4421.6,4421.5,1.2636]
[1755327313238,0.6599,4421.6,4421.5,1.2636]
[1755327313638,0.2516,4421.6,4421.5,1.2636]
[1755327313930,0.2516,4421.6,4421.4,22.23128829]
[1755327313931,0.2463,4421.9,4421.8,0.5804]
[1755327314141,0.2463,4421.9,4421.8,2.72488829]
[1755327315041,1.4366,4421.9,4421.8,1.2636]
[1755327315339,1.4366,4421.9,4421.8,1.0235]
[1755327315536,0.4136,4422.0,4421.9,0.6832]
[1755327315733,0.6599,4422.0,4421.9,5.93268829]
[1755327317240,1.0209,4422.0,4421.9,5.93268829]
[1755327317442,1.195,4422.0,4421.9,5.93268829]
[1755327317640,1.4366,4422.0,4421.9,5.93268829]
[1755327318833,0.2516,4422.0,4421.9,5.93268829]
[1755327319236,0.4222,4422.0,4421.9,5.93268829]
[1755327319439,1.2096,4422.0,4421.9,5.93268829]
[1755327319739,1.4571,4422.0,4421.9,5.69258829]
[1755327320533,1.4571,4422.0,4421.9,5.28138829]
[1755327320738,1.4571,4422.0,4421.9,5.71108829]
[1755327322442,1.4571,4422.0,4421.9,5.96108829]
[1755327324947,0.6154,4422.7,4422.6,0.1709]
[1755327325132,1.59930846,4422.7,4422.6,0.5938]
[1755327326340,0.38890846,4422.7,4422.2,1.46128829]
[1755327326544,0.13870846,4422.6,4422.5,1.62538829]
[1755327326737,0.13870846,4422.6,4422.5,2.75088829]
[1755327326738,0.8452,4422.6,4422.5,2.75088829]
[1755327326939,0.98390846,4422.6,4422.5,2.75088829]
[1755327327242,1.59930846,4422.6,4422.5,2.75088829]
[1755327327441,1.0411,4422.6,4422.5,2.75088829]
[1755327328740,0.2502,4423.3,4422.6,0.7042]
[1755327328939,1.0954,4423.3,4423.2,2.25048829]
[1755327329146,1.23422666,4423.3,4423.2,2.75088829]
[1755327329439,0.13882666,4423.3,4423.2,2.75088829]
[1755327329640,0.38902666,4423.3,4423.2,2.75088829]
[1755327329843,1.17992666,4423.3,4423.2,2.75088829]
[1755327330546,1.0411,4423.3,4423.2,2.75088829]
[1755327330942,0.2551,4423.3,4423.2,2.75088829]
[1755327331246,1.4606,4423.3,4423.2,2.75088829]
[1755327331544,1.2131,4423.3,4423.2,2.75088829]
[1755327332746,0.4257,4423.4,4423.3,1.2896]
[1755327332935,1.0411,4423.4,4423.3,1.2896]
[1755327333647,0.6759,4423.4,4423.3,1.2896]
[1755327333942,0.2551,4423.4,4423.3,1.2896]
[1755327334142,3.8055,4423.9,4423.8,0.5854]
[1755327334335,4.053,4423.9,4423.8,2.75088829]
[1755327334742,4.6684,4423.9,4423.8,2.75088829]
[1755327334941,0.5977,4423.6,4423.2,1.46128829]
[1755327335147,1.4606,4423.6,4423.5,20.72]
[1755327335342,1.4606,4423.6,4423.5,22.77508829]
[1755327335640,1.4606,4423.6,4423.5,22.97048829]
[1755327336746,0.6759,4423.6,4423.5,23.22088829]
[1755327336941,0.6759,4423.6,4423.5,23.47088829]
[1755327337147,1.2131,4423.6,4423.5,23.47088829]
[1755327337448,1.4606,4423.6,4423.5,23.47088829]
[1755327340648,1.4606,4423.6,4423.5,2.75088829]
[1755327340849,1.4606,4423.6,4423.5,23.47188829]
[1755327341650,1.4606,4423.6,4423.2,1.65668829]
[1755327341947,1.4606,4423.6,4423.5,20.716]
[1755327342344,1.4606,4423.6,4423.5,21.1457]
[1755327342547,0.8629,4424.5,4423.6,0.2588]
[1755327342746,1.0411,4423.8,4423.7,4.4974]
[1755327343149,1.4606,4423.8,4423.7,4.4974]
[1755327344650,1.4606,4423.8,4423.7,4.2474]
[1755327345652,1.4606,4423.8,4423.7,4.4974]
[1755327347154,1.4606,4423.8,4423.7,4.2474]
[1755327347948,1.4606,4423.8,4423.7,3.2078]
[1755327348254,1.4606,4423.8,4423.7,23.9098]
[1755327349049,1.2131,4423.8,4423.7,25.2183]
[1755327349448,0.6759,4423.8,4423.7,25.2183]
[1755327350160,1.0476,4423.8,4423.7,25.2183]
[1755327351453,0.6759,4423.8,4423.7,25.2183]
[1755327352757,0.3717,4424.0,4423.7,25.2183]
[1755327352953,0.4205,4424.5,4424.4,0.1769]
[1755327353147,1.61692559,4424.5,4424.4,0.1769]
[1755327353345,1.61692559,4424.5,4424.2,20.9636]
[1755327353547,0.6014,4424.3,4424.2,20.9636]
[1755327353751,1.61692559,4424.3,4424.2,20.9636]
[1755327353959,1.61692559,4424.3,4424.2,21.1405]
[1755327354151,1.36452559,4424.3,4424.2,23.20588829]
[1755327354352,1.0579,4424.3,4424.2,23.46878829]
[1755327354553,1.0579,4424.3,4424.2,26.67658829]
[1755327355559,1.4784,4424.8,4424.7,1.0456]
[1755327355760,1.61706231,4424.8,4424.7,2.50688829]
[1755327357757,0.57196231,4424.8,4424.7,2.07238829]
[1755327358057,1.0579,4424.8,4424.7,5.97758829]
[1755327358258,1.4784,4425.1,4425.0,1.3085]
[1755327358552,1.61712645,4425.1,4425.0,23.46778829]
[1755327358753,0.5333,4425.2,4425.1,1.3085]
[1755327358955,0.1,4425.2,4425.1,1.3085]
[1755327359457,1.326,4425.2,4425.1,1.3085]
[1755327359656,1.5784,4425.2,4425.1,21.7436]
[1755327360656,0.7862,4425.2,4425.1,22.0065]
[1755327360958,0.1,4425.2,4425.1,22.0065]
[1755327361554,1.0579,4426.0,4425.9,0.8497]
[1755327361754,1.0579,4426.0,4425.9,26.67458829]
[1755327362556,1.4784,4426.0,4425.9,26.67458829]
[1755327362960,1.4784,4426.0,4425.9,3.2078]
[1755327363153,1.46128829,4426.5,4425.6,20.697]
[1755327363154,0.6014,4425.7,4425.6,20.697]
[1755327363353,1.4784,4425.7,4425.6,21.5524]
[1755327363565,3.2078,4426.8,4425.6,21.5524]
[1755327363566,0.7928,4426.0,4425.9,0.3465]
[1755327363866,1.226,4426.0,4425.9,26.67858829]
[1755327364067,1.4784,4426.0,4425.9,26.67858829]
[1755327364256,1.0579,4426.0,4425.9,3.2078]
[1755327364456,0.877,4425.9,4425.6,20.705]
[1755327364661,1.4784,4425.7,4425.6,20.706]
[1755327365366,1.4784,4425.7,4425.6,21.1475]
[1755327365668,1.4784,4425.7,4425.6,21.5113]
[1755327366762,0.2651,4425.7,4425.6,22.0145]
[1755327366955,0.877,4426.6,4425.7,0.7217]
[1755327367159,1.4784,4426.0,4425.9,5.71468829]
[1755327367355,1.4784,4426.0,4425.4,3.2078]
[1755327367567,1.4784,4425.6,4425.5,21.7506]
[1755327367766,1.4784,4425.6,4425.5,22.0135]
[1755327368663,0.2529,4426.3,4425.5,21.2918]
[1755327368965,1.4784,4426.2,4426.1,1.3085]
[1755327369266,1.4784,4426.2,4426.1,21.7466]
[1755327370062,0.877,4427.1,4426.2,0.5275]
[1755327370268,0.877,4426.7,4426.4,3.2078]
[1755327370465,0.6014,4426.5,4426.4,23.9078]
[1755327370669,1.4784,4426.5,4426.4,23.9078]
[1755327371561,1.4784,4426.5,4426.4,3.2078]
[1755327371870,1.4784,4426.5,4426.4,23.9418]
[1755327372574,1.4784,4426.5,4426.4,24.2064]
[1755327372873,1.4784,4426.5,4426.4,24.3833]
[1755327373066,1.4784,4426.5,4426.4,23.9418]
[1755327374274,1.4784,4426.5,4426.4,24.2883]
[1755327374574,1.4784,4426.5,4426.4,24.5529]
[1755327374969,1.226,4426.5,4426.4,26.44868829]
[1755327375178,1.226,4426.5,4426.4,26.71158829]
[1755327375376,1.4784,4426.5,4426.4,3.2078]
[1755327376075,1.4784,4426.5,4426.4,3.4724]
[1755327376271,1.4784,4426.5,4426.4,23.9278]
[1755327376770,1.4784,4426.5,4426.4,3.2078]
[1755327378080,1.4784,4426.5,4426.4,23.9228]
[1755327378682,1.4784,4426.5,4426.1,1.46128829]
[1755327378683,0.8503,4425.8,4425.6,3.2078]
[1755327378886,1.463,4425.8,4425.7,22.77228829]
[1755327379078,1.463,4425.8,4425.7,23.45718829]
[1755327379277,1.463,4425.8,4425.7,23.21458829]
[1755327379780,1.463,4425.8,4425.7,23.21758829]
[1755327380184,1.463,4425.8,4425.7,2.50058829]
[1755327380383,1.463,4425.8,4425.7,22.96758829]
[1755327380585,1.463,4425.8,4425.7,23.21558829]
[1755327381184,1.463,4425.8,4425.7,23.45818829]
[1755327381983,1.463,4425.8,4425.7,23.21558829]
[1755327382280,1.463,4425.8,4425.6,3.2078]
[1755327382484,1.463,4425.1,4425.0,3.9991]
[1755327382674,1.463,4425.1,4425.0,24.9561]
[1755327382879,1.463,4425.1,4425.0,25.1987]
[1755327383178,1.463,4425.1,4425.0,3.8048]
[1755327383378,1.463,4425.1,4425.0,25.97408829]
[1755327383577,1.463,4425.1,4425.0,26.65898829]
[1755327383782,1.208,4425.1,4425.0,26.65898829]
[1755327384284,0.2456,4425.3,4425.0,25.96198829]
[1755327384483,0.2456,4425.3,4425.2,2.74318829]
[1755327384980,1.0374,4425.3,4425.2,2.74318829]
[1755327385182,0.9624,4425.1,4425.0,3.2078]
[1755327385385,1.463,4425.1,4425.0,23.9308]
[1755327385688,1.463,4425.1,4425.0,3.2078]
[1755327385983,1.463,4425.1,4425.0,23.9288]
[1755327386986,1.463,4424.4,4424.3,1.89388829]
[1755327387384,1.463,4424.4,4424.3,20.723]
[1755327387786,0.5953,4424.4,4424.3,20.723]
[1755327387987,0.5953,4424.4,4424.1,3.56961445]
[1755327388187,0.5953,4424.4,4424.2,0.2601]
[1755327388384,1.463,4424.3,4424.2,21.318]
[1755327388589,1.463,4424.3,4424.2,21.5123]
[1755327391295,1.463,4424.3,4424.2,21.7603]
[1755327392399,1.463,4424.3,4424.2,21.5123]
[1755327392595,1.463,4424.2,4424.1,24.02051445]
[1755327393591,1.463,4424.2,4424.1,20.81271445]
[1755327393790,1.463,4424.2,4424.1,0.10171445]
[1755327399306,1.463,4423.3,4423.2,0.1644]
[1755327399504,0.5953,4423.3,4423.1,3.2078]
[1755327399806,1.463,4423.2,4423.1,3.6404]
[1755327400098,1.463,4423.2,4423.1,3.8048]
[1755327400406,1.463,4423.2,4423.1,0.597]
[1755327400907,1.463,4423.2,4423.1,0.8924]
[1755327402198,1.463,4423.2,4423.1,1.1404]
[1755327402704,1.463,4423.2,4423.1,1.383]
[1755327403206,1.463,4423.2,4423.1,1.1404]
[1755327403999,1.463,4423.2,4423.1,1.383]
[1755327404201,1.463,4423.2,4423.1,1.1404]
[1755327405602,1.463,4423.2,4423.1,1.383]
[1755327411213,1.463,4423.2,4423.1,1.1404]
[1755327415614,1.463,4423.2,4423.1,1.3952]
[1755327417512,1.463,4423.2,4423.1,1.1404]
[1755327418218,1.463,4423.2,4422.8,2.01258829]
[1755327418419,1.4939,4423.1,4423.0,0.1686]
[1755327418614,1.4939,4423.1,4423.0,0.8984]
[1755327419116,1.4939,4423.1,4423.0,1.1381]
[1755327419512,1.4939,4423.1,4423.0,1.3929]
[1755327423114,1.61473662,4423.1,4423.0,1.3929]
[1755327425620,1.61478795,4423.1,4423.0,1.3929]
[1755327425814,0.5995,4422.7,4422.6,3.8097]
[1755327426021,1.4939,4422.7,4422.6,0.1686]
[1755327426418,1.61484081,4422.7,4422.6,0.1686]
[1755327427217,0.72044081,4422.7,4422.4,0.2608]
[1755327427416,0.5995,4422.5,4422.4,0.4294]
[1755327427623,1.61484081,4422.5,4422.4,0.4294]
[1755327427917,1.61484081,4422.5,4422.2,20.9985]
[1755327427918,0.5995,4422.1,4422.0,3.2078]
[1755327428123,1.4939,4422.1,4422.0,24.8082]
[1755327428322,1.72250244,4422.1,4422.0,24.8082]
[1755327428523,1.4939,4422.1,4422.0,25.3027]
[1755327429123,1.46853053,4422.1,4422.0,25.3027]
[1755327430219,1.2399,4422.1,4422.0,25.3027]
[1755327431919,1.2433,4422.8,4422.7,0.1686]
[1755327432127,1.84330972,4422.8,4422.7,0.4294]
[1755327432822,0.5995,4422.1,4422.0,4.0494]
[1755327433027,1.4939,4422.1,4422.0,25.0479]
[1755327433226,1.4939,4422.1,4422.0,25.3027]
[1755327433423,1.71188829,4422.9,4422.0,26.76398829]
[1755327433624,0.34936056,4422.8,4422.7,1.3929]
[1755327433822,0.22844843,4422.8,4422.7,22.0949]
[1755327434021,3.4584,4423.1,4422.7,21.2828]
[1755327434328,1.58921458,4423.0,4422.9,1.1381]
[1755327434528,1.84321458,4423.0,4422.9,1.1381]
[1755327434729,1.19941458,4423.0,4422.9,1.3929]
[1755327434930,1.03111458,4423.0,4422.9,1.3929]
[1755327435224,1.19941458,4423.0,4422.9,1.3929]
[1755327435430,1.84321458,4423.0,4422.9,1.3929]
[1755327435629,1.58921458,4423.0,4422.9,1.3929]
[1755327436223,1.84321458,4423.0,4422.9,1.3929]
[1755327436933,1.4939,4423.0,4422.9,1.3929]
[1755327437230,1.84319631,4423.0,4422.9,1.3929]
[1755327437422,1.84319753,4423.0,4422.9,1.3929]
[1755327438120,1.84319753,4423.0,4422.9,1.1381]
[1755327440332,1.8432053,4423.0,4422.9,1.1381]
[1755327442526,1.8432053,4423.0,4422.9,0.6019]
[1755327442931,1.8432053,4423.0,4422.6,20.9547]
[1755327442932,3.30449359,4423.0,4422.6,20.9477]
[1755327443127,1.4496,4422.7,4422.6,0.6374]
[1755327443322,0.5894,4422.3,4422.2,3.789]
[1755327443531,1.4496,4422.3,4422.2,24.7854]
[1755327443830,1.4496,4422.3,4422.2,25.2878]
[1755327444025,1.4496,4422.3,4422.2,25.0331]
[1755327444829,1.4496,4422.3,4422.2,25.2878]
[1755327446128,0.665,4422.3,4422.2,3.3797]
[1755327446328,1.5866378,4422.3,4422.2,0.1719]
[1755327446533,1.5866378,4422.3,4422.2,0.4196]
[1755327447626,1.5866378,4422.3,4422.2,1.38]
[1755327448033,1.3466378,4422.3,4422.2,1.38]
[1755327448227,1.2096,4422.3,4422.2,1.38]
[1755327449234,1.4496,4422.3,4422.2,1.38]
[1755327450934,1.0417,4422.3,4422.2,1.38]
[1755327452736,1.4496,4422.3,4422.2,1.38]
[1755327455535,1.58666861,4422.3,4422.2,1.38]
[1755327456139,1.58666761,4422.3,4422.2,1.38]
[1755327457236,1.58666761,4422.3,4422.2,0.4655]
[1755327457538,1.58666761,4422.3,4422.2,1.38]
[1755327461042,1.58666761,4422.3,4422.2,22.076]
[1755327462041,1.58666761,4422.3,4422.2,1.38]
[1755327462342,1.58666761,4422.3,4422.2,22.076]
[1755327464942,1.58666761,4422.3,4422.2,20.696]
[1755327465143,1.8159621,4422.3,4422.2,20.696]
[1755327465441,0.5894,4421.8,4421.5,20.695]
[1755327465638,1.4496,4421.6,4421.5,22.075]
[1755327465843,1.0729,4422.1,4422.0,0.5812]
[1755327466043,1.81606695,4422.1,4422.0,1.38]
[1755327471044,0.36646695,4422.1,4422.0,1.3878]
[1755327471553,0.13713479,4422.1,4422.0,1.3878]
[1755327472648,1.61233479,4422.1,4422.0,1.3878]
[1755327472953,1.61233479,4422.1,4422.0,1.1253]
[1755327474449,1.61233479,4422.1,4422.0,1.3878]
[1755327475653,1.61233479,4422.1,4422.0,1.1253]
[1755327475854,1.61233479,4422.1,4422.0,1.3878]
[1755327477750,1.61233479,4422.1,4422.0,1.1253]
[1755327478951,1.61233479,4422.1,4422.0,0.8851]
[1755327479153,1.84158945,4422.1,4422.0,0.5887]
[1755327479359,1.84158945,4422.1,4422.0,0.8852]
[1755327480055,0.4269,4421.7,4421.6,3.2078]
[1755327480254,1.4752,4421.7,4421.6,23.8988]
[1755327480853,0.6441,4421.6,4421.2,2.0279657]
[1755327481051,0.5895,4421.3,4421.0,5.2357657]
[1755327481255,1.4752,4421.2,4421.1,21.1536]
[1755327481455,1.4752,4421.2,4421.1,21.8267]
[1755327482261,2.93648829,4421.2,4421.0,3.2078]
[1755327482461,1.0567,4421.1,4421.0,3.3821]
[1755327482763,1.4752,4421.1,4421.0,4.088]
[1755327484263,1.4752,4421.1,4421.0,4.3445]
[1755327484954,1.4752,4421.1,4421.0,3.2078]
[1755327485161,1.4752,4421.0,4420.9,0.8402]
[1755327485463,1.4752,4421.0,4420.9,1.1367]
[1755327486859,1.4752,4421.0,4420.9,1.3992]
[1755327488063,0.3896,4421.7,4421.0,0.2423]
[1755327488365,1.83818949,4421.6,4421.5,0.5837]
[1755327488655,1.83818949,4421.6,4421.2,0.559]
[1755327488861,0.5895,4421.3,4421.2,0.6379]
[1755327489062,1.6120439,4421.3,4421.2,0.6379]
[1755327489364,1.6120439,4421.3,4421.2,0.8802]
[1755327489864,1.6120439,4421.3,4421.2,1.3992]
[1755327493568,0.7263439,4421.3,4421.0,20.69]
[1755327493768,1.4752,4421.1,4421.0,20.9323]
[1755327494157,1.4752,4421.1,4421.0,21.1066]
[1755327494364,1.4752,4421.1,4421.0,21.5702]
[1755327494959,1.4752,4421.1,4421.0,21.8267]
[1755327496671,1.4752,4421.1,4421.0,22.0892]
[1755327498872,1.4752,4421.1,4421.0,21.8267]
[1755327500269,1.4777,4421.1,4421.0,21.8267]
[1755327500472,1.4777,4421.1,4421.0,22.0906]
[1755327506371,1.61467865,4421.1,4421.0,22.0906]
[1755327507979,1.61472254,4421.1,4421.0,22.0906]
[1755327508277,0.13702254,4421.1,4421.0,22.0906]
[1755327508475,0.2559,4422.3,4421.0,22.0906]
[1755327508476,0.2458,4422.3,4421.0,27.4957]
[1755327508674,1.8310592,4422.2,4422.1,0.5743]
[1755327508871,1.8310592,4422.2,4422.1,1.1363]
[1755327509076,0.5703,4421.9,4421.8,20.683]
[1755327509283,1.4675,4421.8,4421.7,0.2653]
[1755327509580,1.8310592,4421.8,4421.7,0.4254]
[1755327509780,1.8310592,4421.8,4421.7,0.8852]
[1755327510175,1.8310592,4421.8,4421.7,1.1363]
[1755327511280,1.8310592,4421.8,4421.1,0.2653]
[1755327511580,1.0479,4421.2,4421.1,1.4002]
[1755327511783,1.0479,4421.2,4421.1,22.0822]
[1755327512281,1.1849968,4421.2,4421.1,22.0822]
[1755327513883,1.3486968,4421.2,4420.8,0.2967]
[1755327514079,0.5703,4421.0,4420.9,21.5662]
[1755327514288,1.84491322,4421.0,4420.9,21.5662]
[1755327514676,1.84491322,4421.0,4420.9,21.8173]
[1755327514988,1.84491322,4421.0,4420.9,22.0812]
[1755327518789,1.84491322,4421.0,4420.9,1.4002]
[1755327519287,1.84491322,4421.0,4420.9,22.0792]
[1755327520894,1.58901322,4421.0,4420.9,22.0792]
[1755327521291,1.3486968,4421.0,4420.9,22.0792]
[1755327522493,3.2078,4422.0,4420.9,22.0792]
[1755327522494,3.4536,4422.0,4420.9,22.0792]
[1755327522684,1.57889428,4421.9,4421.8,1.2631]
[1755327522888,1.83479428,4421.9,4421.8,1.2631]
[1755327523086,1.83479428,4421.9,4421.8,0.4254]
[1755327523292,0.8972,4421.8,4421.4,20.677]
[1755327523493,1.4675,4421.5,4421.4,20.9423]
[1755327523791,0.5703,4421.1,4421.0,0.9992]
[1755327523989,1.4675,4421.1,4421.0,21.9401]
[1755327524387,1.4675,4421.1,4421.0,21.6762]
[1755327525093,1.4675,4421.1,4421.0,21.6752]
[1755327525393,1.4675,4421.1,4421.0,0.9992]
[1755327525594,1.4675,4421.1,4421.0,21.2645]
[1755327525792,1.4675,4421.1,4421.0,21.4241]
[1755327526498,1.69772338,4421.1,4421.0,21.4241]
[1755327526685,1.4675,4421.1,4421.0,21.4241]
[1755327527096,1.69772294,4421.1,4421.0,21.4241]
[1755327527391,1.4675,4421.1,4421.0,21.4241]
[1755327528398,1.69772245,4421.1,4421.0,21.4241]
[1755327528900,1.4675,4421.1,4421.0,21.4241]
[1755327529099,1.69772379,4421.1,4421.0,21.4241]
[1755327529396,1.69772385,4421.1,4421.0,21.4241]
[1755327529793,0.5821,4420.7,4420.6,0.3332]
[1755327529999,0.5821,4420.7,4420.6,21.4272]
[1755327530601,1.4714,4420.7,4420.6,21.4272]
[1755327532701,1.4714,4420.7,4420.6,21.6891]
[1755327534101,1.4714,4420.5,4420.4,5.9889657]
[1755327534296,1.4714,4420.5,4420.4,24.8792]
[1755327534495,1.4714,4420.5,4420.4,25.1411]
[1755327534994,1.4714,4420.5,4420.4,4.4671]
[1755327535401,1.4714,4420.5,4420.4,24.8782]
[1755327536090,1.46128829,4421.0,4420.5,0.8556]
[1755327536091,0.4195,4420.6,4420.5,0.8556]
[1755327536297,0.55087737,4420.6,4420.5,1.2383]
[1755327536497,0.55087737,4420.6,4420.5,1.0998]
[1755327536691,0.55087737,4420.6,4420.5,1.4825]
[1755327538303,0.93547737,4420.6,4420.5,1.4825]
[1755327539905,0.93544633,4420.6,4420.5,1.4825]
[1755327543007,1.19144633,4420.6,4420.5,22.1535]
[1755327543307,0.93544633,4420.6,4420.5,22.1535]
[1755327543504,0.3846,4421.6,4420.5,22.70968829]
[1755327543706,0.8041,4421.4,4421.3,4.6903]
[1755327543908,1.16546861,4421.4,4421.3,4.6903]
[1755327544110,2.8827569,4421.4,4421.1,20.67]
[1755327544306,1.0601,4421.2,4421.1,20.9319]
[1755327544614,1.42146861,4421.2,4421.1,20.9319]
[1755327544806,1.42146861,4421.2,4421.1,21.1924]
[1755327545203,1.42146861,4421.2,4421.1,21.5256]
[1755327545404,1.42146861,4421.2,4421.1,22.1525]
[1755327545713,1.16546861,4421.2,4421.1,22.1525]
[1755327546711,0.8041,4421.2,4421.1,22.1525]
[1755327546914,0.36140735,4421.2,4421.1,22.1525]
[1755327547806,0.3846,4422.1,4421.1,21.2474]
[1755327548006,0.780836,4422.0,4421.9,0.5774]
[1755327548209,0.780836,4422.0,4421.9,1.4825]
[1755327548405,1.165436,4422.0,4421.9,1.4825]
[1755327548610,0.93541358,4422.0,4421.9,1.4825]
[1755327549012,0.38751358,4422.0,4421.9,1.4825]
[1755327549618,0.93541358,4422.0,4421.9,1.4825]
[1755327550325,0.13131358,4422.0,4421.9,1.4825]
[1755327550510,0.1312439,4422.0,4421.9,0.5774]
[1755327550714,0.1312439,4422.0,4421.9,2.03868829]
[1755327550916,0.1312439,4422.0,4421.9,0.5774]
[1755327551322,0.1312439,4422.0,4421.9,1.4825]
[1755327553220,0.256,4422.5,4422.0,0.5224]
[1755327553425,0.6755,4422.5,4422.4,1.4825]